bitfinex-derivatives/quotes_SOLF0:USTF0_20250528
["timestamp","ask_amount","ask_price","bid_price","bid_amount"]
[1748391690735,36.1648,176.15,176.06,30.4]
[1748391691237,5.6757,176.11,176.09,0.04284466]
[1748391691433,0.04169131,176.12,176.09,0.04284466]
[1748391691838,5.6758,176.1,176.09,0.04284466]
[1748391693536,5.6756,176.11,176.09,0.04284466]
[1748391695135,5.71699131,176.12,176.09,0.04284466]
[1748391695440,5.71699131,176.12,176.09,5.71894466]
[1748391696135,5.6755,176.11,176.09,0.04284466]
[1748391697940,5.71689131,176.12,176.09,0.04284466]
[1748391698142,0.04169131,176.12,176.09,5.71884466]
[1748391698436,5.71689131,176.12,176.09,5.71884466]
[1748391702045,0.04169131,176.12,176.09,5.71884466]
[1748391702546,0.04169131,176.12,176.1,36.0757]
[1748391702937,0.04169131,176.12,176.1,30.4]
[1748391703144,0.04169131,176.12,176.11,5.6755]
[1748391705640,0.04169131,176.12,176.1,36.0757]
[1748391705847,0.04169131,176.12,176.1,30.4]
[1748391706248,5.6755,176.11,176.09,0.04284466]
[1748391707041,5.6758,176.1,176.09,0.04284466]
[1748391709849,0.04169131,176.12,176.09,5.71894466]
[1748391710938,0.04169131,176.12,176.1,35.6356]
[1748391711146,0.04169131,176.12,176.1,29.96]
[1748391711451,47.81600436,176.23,176.1,29.96]
[1748391711651,5.6746,176.14,176.1,35.6356]
[1748391712145,5.6746,176.14,176.11,5.6754]
[1748391712346,0.04181636,176.14,176.11,5.71760513]
[1748391712546,0.04181636,176.14,176.11,0.04220513]
[1748391714051,0.04181636,176.14,176.12,5.6751]
[1748391714247,5.71641636,176.14,176.11,0.04220513]
[1748391714949,0.04181636,176.14,176.12,5.675]
[1748391715847,0.04181636,176.14,176.13,5.6748]
[1748391718147,11.3372,176.33,176.13,112.36]
[1748391718351,3.9028,176.3,176.17,6.51220436]
[1748391718648,3.9028,176.3,176.14,33.8966]
[1748391718649,5.6703,176.28,176.22,5.6717]
[1748391718841,3.9028,176.3,176.22,29.96]
[1748391719243,0.03751117,176.28,176.25,5.6707]
[1748391719449,0.03751117,176.28,176.24,0.03888591]
[1748391719850,2.0021,176.32,176.24,0.03888591]
[1748391720057,1.8888,176.34,176.26,6.51220436]
[1748391720258,5.6687,176.32,176.27,29.96]
[1748391720756,0.03650971,176.31,176.28,0.03769525]
[1748391722446,5.70560971,176.31,176.28,0.03769525]
[1748391723157,5.70560971,176.31,176.28,5.70769525]
[1748391723358,0.03650971,176.31,176.28,5.70769525]
[1748391724759,5.70580971,176.31,176.28,5.70769525]
[1748391725961,0.03650971,176.31,176.28,0.03769525]
[1748391726153,31.9149,176.4,176.28,6.54989961]
[1748391726458,31.9149,176.4,176.28,6.51220436]
[1748391726655,5.6676,176.36,176.31,5.669]
[1748391726957,5.6676,176.36,176.32,29.94]
[1748391727156,0.03989953,176.36,176.32,35.64745419]
[1748391727359,0.03989953,176.36,176.32,29.97905419]
[1748391728754,5.6662,176.4,176.36,5.6674]
[1748391729062,5.6662,176.4,176.37,29.94]
[1748391729759,5.6662,176.4,176.37,29.97905796]
[1748391730861,5.6665,176.39,176.37,29.97905796]
[1748391731261,5.6664,176.4,176.37,29.97905796]
[1748391732060,5.6665,176.39,176.37,29.97905796]
[1748391733065,5.6662,176.4,176.37,29.97905796]
[1748391733658,5.6662,176.4,176.37,35.64605796]
[1748391734067,5.6662,176.4,176.37,29.97905796]
[1748391734671,1.9749,176.48,176.37,29.97905796]
[1748391734861,1.9749,176.48,176.41,0.03707933]
[1748391735170,1.9749,176.48,176.42,29.94]
[1748391735969,5.6648,176.45,176.42,29.94]
[1748391737072,5.6642,176.46,176.43,5.6651]
[1748391737272,1.9749,176.48,176.42,29.94]
[1748391737476,33.8275,176.52,176.42,29.94]
[1748391737773,33.8275,176.52,176.45,0.04258097]
[1748391737977,5.664,176.47,176.45,0.04258097]
[1748391738367,33.8275,176.52,176.45,0.04258097]
[1748391739076,5.6641,176.47,176.45,0.04258097]
[1748391741175,5.6642,176.46,176.45,0.04258097]
[1748391743271,5.664,176.47,176.45,0.04258097]
[1748391743476,33.8275,176.52,176.45,0.04258097]
[1748391743877,5.6642,176.46,176.45,0.04258097]
[1748391745579,5.664,176.47,176.45,0.04258097]
[1748391746389,5.6637,176.48,176.45,0.04258097]
[1748391747483,5.6637,176.48,176.46,29.82]
[1748391748095,5.6633,176.49,176.46,29.82]
[1748391748782,3.8875,176.52,176.46,35.4841]
[1748391748783,5.663,176.5,176.46,35.4841]
[1748391748982,3.8875,176.52,176.46,29.82]
[1748391749390,5.663,176.5,176.46,35.4841]
[1748391750193,5.6633,176.49,176.46,35.4841]
[1748391750890,3.8875,176.52,176.46,29.82]
[1748391751287,1.8986,176.54,176.46,29.82]
[1748391751494,1.8986,176.54,176.47,5.6637]
[1748391751495,5.6627,176.51,176.47,5.6637]
[1748391751684,5.6627,176.51,176.47,0.03905484]
[1748391751883,1.8986,176.54,176.47,0.03905484]
[1748391752089,5.6624,176.52,176.47,0.03905484]
[1748391752282,1.8986,176.54,176.47,0.03905484]
[1748391752690,5.6621,176.53,176.49,5.6631]
[1748391752894,1.8986,176.54,176.49,5.6631]
[1748391753093,5.6625,176.52,176.49,5.6631]
[1748391753289,1.8986,176.54,176.48,5.6635]
[1748391753591,1.8986,176.54,176.47,0.03905484]
[1748391753781,8.41080436,176.54,176.47,0.03905484]
[1748391754894,1.8986,176.54,176.47,0.03905484]
[1748391755086,1.8986,176.54,176.47,5.70285484]
[1748391755486,5.6631,176.5,176.47,5.70285484]
[1748391756097,5.6627,176.51,176.48,5.6635]
[1748391756395,1.8986,176.54,176.47,0.03905484]
[1748391756589,1.8986,176.54,176.47,5.70275484]
[1748391757087,5.6631,176.5,176.47,5.70275484]
[1748391757691,1.8986,176.54,176.47,0.03905484]
[1748391758395,5.6631,176.5,176.47,5.70285484]
[1748391758893,5.6633,176.49,176.47,0.03905484]
[1748391759494,1.8986,176.54,176.47,0.03905484]
[1748391760184,5.663,176.5,176.47,5.70285484]
[1748391761389,1.8986,176.54,176.47,0.03905484]
[1748391761593,8.41080436,176.54,176.47,0.03905484]
[1748391762189,5.6636,176.48,176.47,0.03905484]
[1748391771592,1.8986,176.54,176.47,0.03905484]
[1748391772403,1.8986,176.54,176.48,5.6635]
[1748391773004,5.6629,176.51,176.48,5.6635]
[1748391773508,1.8986,176.54,176.48,5.6635]
[1748391774204,5.6628,176.51,176.48,5.6635]
[1748391774603,5.663,176.5,176.48,5.6635]
[1748391775708,1.8986,176.54,176.47,0.03905484]
[1748391776409,1.8986,176.54,176.5,5.6629]
[1748391776806,5.662,176.53,176.5,5.6629]
[1748391777408,5.6625,176.52,176.49,5.6631]
[1748391780215,1.8986,176.54,176.47,0.03905484]
[1748391780713,5.6631,176.5,176.47,5.70275484]
[1748391781116,1.8986,176.54,176.47,5.70275484]
[1748391781411,5.6632,176.5,176.47,5.70275484]
[1748391781803,1.8986,176.54,176.47,0.03905484]
[1748391782003,6.51220436,176.53,176.47,0.03905484]
[1748391782212,29.52,176.52,176.47,0.03905484]
[1748391782406,5.6636,176.48,176.47,0.03905484]
[1748391783307,1.8986,176.54,176.47,0.03905484]
[1748391783513,1.8986,176.54,176.49,5.6632]
[1748391783717,1.8986,176.54,176.49,29.52]
[1748391784206,1.8986,176.54,176.5,5.6628]
[1748391784414,1.8986,176.54,176.49,29.52]
[1748391784612,1.8986,176.54,176.5,5.6627]
[1748391784914,1.8986,176.54,176.49,29.52]
[1748391784915,5.6628,176.51,176.49,29.52]
[1748391785313,1.8986,176.54,176.49,29.52]
[1748391786211,8.41080436,176.54,176.47,0.03905484]
[1748391786604,5.6636,176.48,176.47,0.03905484]
[1748391795114,29.52,176.53,176.47,0.03905484]
[1748391795521,5.6632,176.5,176.47,5.70275484]
[1748391795822,5.6632,176.5,176.47,0.03905484]
[1748391796221,1.8986,176.54,176.47,0.03905484]
[1748391796421,3.8213,176.56,176.47,0.03905484]
[1748391796617,5.6618,176.54,176.47,0.03905484]
[1748391796823,3.8213,176.56,176.47,0.03905484]
[1748391797419,5.6622,176.53,176.5,5.6627]
[1748391797617,5.6622,176.53,176.5,5.70281103]
[1748391798821,5.6618,176.54,176.5,0.04011103]
[1748391799122,3.8213,176.56,176.5,0.04011103]
[1748391799524,5.6619,176.54,176.5,0.04011103]
[1748391800025,5.6619,176.54,176.51,5.6624]
[1748391800225,5.6621,176.53,176.51,5.6624]
[1748391801329,5.6618,176.54,176.5,0.04011103]
[1748391801721,5.6618,176.54,176.51,5.6624]
[1748391803833,5.6618,176.54,176.52,5.6623]
[1748391804033,5.6618,176.54,176.5,0.04011103]
[1748391804532,5.6618,176.54,176.51,5.6624]
[1748391804932,1.9357,176.58,176.5,0.04011103]
[1748391805532,5.6613,176.56,176.53,5.6619]
[1748391805734,5.6613,176.56,176.53,5.6996476]
[1748391805934,1.9357,176.58,176.53,0.0377476]
[1748391806335,5.6617,176.54,176.53,0.0377476]
[1748391807432,5.6629,176.5,176.49,29.52]
[1748391810239,5.69916727,176.51,176.49,29.52]
[1748391811036,5.69916727,176.51,176.49,35.1832]
[1748391811244,0.03646727,176.51,176.49,35.1832]
[1748391813036,5.69906727,176.51,176.49,35.1832]
[1748391813339,0.03646727,176.51,176.49,35.1832]
[1748391818043,0.03646727,176.51,176.5,5.6629]
[1748391824145,29.16,176.62,176.49,36.03220436]
[1748391824747,5.661,176.57,176.53,5.6617]
[1748391825044,29.16,176.62,176.53,5.70335174]
[1748391825845,29.16,176.62,176.53,0.04165174]
[1748391826447,5.6617,176.54,176.53,0.04165174]
[1748391842050,5.6617,176.54,176.53,5.174e-05]
[1748391843962,5.6633,176.49,176.48,29.16]
[1748391844351,29.16,176.54,176.44,34.8247]
[1748391844953,29.16,176.54,176.47,0.03586711]
[1748391845160,0.03627214,176.51,176.47,0.03586711]
[1748391845657,5.6636,176.48,176.47,0.03586711]
[1748391846159,0.03627214,176.51,176.47,0.03586711]
[1748391846466,0.03627214,176.51,176.47,5.69966711]
[1748391846951,0.03627214,176.51,176.47,0.03586711]
[1748391847363,5.6636,176.48,176.47,0.03586711]
[1748391853463,5.663,176.5,176.47,0.03586711]
[1748391853870,0.03627214,176.51,176.47,0.03586711]
[1748391854970,5.6633,176.49,176.47,0.03586711]
[1748391856767,5.6636,176.48,176.47,0.03586711]
[1748391856966,0.03627214,176.51,176.47,0.03586711]
[1748391857367,5.6635,176.49,176.47,0.03586711]
[1748391860366,5.6636,176.48,176.47,0.03586711]
[1748391861780,5.6633,176.49,176.47,5.69976711]
[1748391863374,5.6633,176.49,176.47,0.03586711]
[1748391863572,5.6636,176.48,176.47,0.03586711]
[1748391864574,5.6634,176.49,176.47,0.03586711]
[1748391866176,5.6636,176.48,176.47,0.03586711]
[1748391866578,0.03627214,176.51,176.47,0.03586711]
[1748391867180,5.6635,176.49,176.47,0.03586711]
[1748391867775,0.03627214,176.51,176.47,5.69976711]
[1748391868181,0.03627214,176.51,176.47,0.03586711]
[1748391868682,5.69907214,176.51,176.48,5.6634]
[1748391873490,5.69907214,176.51,176.47,0.03586711]
[1748391873882,5.663,176.5,176.47,0.03586711]
[1748391874481,5.663,176.5,176.47,5.69966711]
[1748391875587,5.6634,176.49,176.47,5.69966711]
[1748391876581,5.6631,176.5,176.47,5.69966711]
[1748391878492,5.6631,176.5,176.48,5.6636]
[1748391880396,5.6633,176.49,176.47,5.69976711]
[1748391881689,5.6631,176.5,176.47,5.69976711]
[1748391881891,5.6631,176.5,176.47,9.85711418]
[1748391883788,5.6633,176.49,176.47,9.85711418]
[1748391883989,0.03627214,176.51,176.47,9.85711418]
[1748391884190,5.6632,176.5,176.47,9.85711418]
[1748391885089,5.6632,176.5,176.47,40.01711418]
[1748391888197,5.6632,176.5,176.48,5.6635]
[1748391888494,0.03627214,176.51,176.47,34.35321418]
[1748391889395,5.69897214,176.51,176.49,5.6632]
[1748391889592,0.03627214,176.51,176.49,5.6632]
[1748391889799,30.16,176.6,176.5,4.15734707]
[1748391889994,30.16,176.6,176.52,4.15734707]
[1748391889995,4.15734707,176.59,176.52,4.15734707]
[1748391890397,4.15734707,176.59,176.52,9.81954707]
[1748391890799,0.02044729,176.57,176.54,0.04210507]
[1748391891099,5.6613,176.56,176.54,0.04210507]
[1748391892802,5.6613,176.55,176.54,0.04210507]
[1748391894206,6.49324752,176.56,176.47,30.16]
[1748391894405,1.8933,176.54,176.44,30.16]
[1748391894704,5.6638,176.48,176.45,5.6644]
[1748391895204,5.70094039,176.48,176.45,5.70737859]
[1748391896302,5.70094039,176.48,176.46,5.6642]
[1748391904508,5.70094039,176.48,176.45,5.70737859]
[1748391904906,5.70094039,176.48,176.45,0.04297859]
[1748391904907,0.03714039,176.48,176.45,0.04297859]
[1748391905911,5.6641,176.47,176.45,0.04297859]
[1748391907217,5.6642,176.46,176.45,0.04297859]
[1748391908616,5.6641,176.47,176.45,0.04297859]
[1748391909217,5.6642,176.46,176.45,0.04297859]
[1748391909608,0.03714039,176.48,176.37,29.68]
[1748391909609,5.9294,176.47,176.37,29.68]
[1748391909809,12.42264752,176.47,176.37,29.68]
[1748391910016,42.10264752,176.47,176.37,29.68]
[1748391910215,5.6668,176.38,176.37,29.68]
[1748391910609,0.0362704,176.39,176.37,29.68]
[1748391911219,0.0362704,176.39,176.36,0.03839105]
[1748391912218,0.0362704,176.39,176.36,5.70569105]
[1748391912925,0.0362704,176.39,176.37,5.6671]
[1748391913719,0.0362704,176.39,176.38,5.6668]
[1748391916120,35.6094,176.47,176.36,6.53163857]
[1748391916330,35.6094,176.47,176.36,6.49324752]
[1748391916625,5.6645,176.46,176.36,6.49324752]
[1748391917129,0.04152675,176.43,176.42,5.6652]
[1748391919825,29.68,176.52,176.4,29.68]
[1748391920025,29.68,176.56,176.42,6.49324752]
[1748391920227,5.6624,176.52,176.45,6.49324752]
[1748391920429,3.7975,176.55,176.48,5.6633]
[1748391920730,0.0277338,176.53,176.5,0.04106349]
[1748391922025,5.6627,176.51,176.5,0.04106349]
[1748391922423,0.0277338,176.53,176.5,5.70396349]
[1748391922732,5.6899338,176.53,176.5,0.04106349]
[1748391922932,0.0277338,176.53,176.5,0.04106349]
[1748391924029,5.6624,176.52,176.5,0.04106349]
[1748391925933,5.6626,176.51,176.5,0.04106349]
[1748391929839,0.0277338,176.53,176.5,0.04106349]
[1748391929840,5.6624,176.52,176.5,0.04106349]
[1748391930036,0.0277338,176.53,176.5,0.04106349]
[1748391930632,5.6626,176.52,176.5,0.04106349]
[1748391931140,0.0277338,176.53,176.5,0.04106349]
[1748391931141,5.6626,176.51,176.5,0.04106349]
[1748391936334,5.6624,176.52,176.5,0.04106349]
[1748391936535,0.0277338,176.53,176.5,0.04106349]
[1748391936839,5.6899338,176.53,176.5,5.70386349]
[1748391937444,0.0277338,176.53,176.5,0.04106349]
[1748391938050,0.0277338,176.53,176.51,5.6624]
[1748391939452,5.6898338,176.53,176.51,5.6624]
[1748391940250,0.0277338,176.53,176.51,5.6624]
[1748391940553,29.34,176.6,176.5,29.38106349]
[1748391940850,5.6613,176.56,176.5,29.38106349]
[1748391941048,29.34,176.6,176.5,29.38106349]
[1748391942452,5.6616,176.55,176.52,5.6621]
[1748391942642,29.34,176.6,176.52,5.70018282]
[1748391942954,3.7569,176.59,176.52,0.03808282]
[1748391943150,5.6619,176.54,176.52,0.03808282]
[1748391944256,5.662,176.53,176.52,0.03808282]
[1748391945148,5.6618,176.54,176.52,0.03808282]
[1748391945343,5.6618,176.54,176.52,5.70028282]
[1748391946051,5.6615,176.55,176.52,5.70028282]
[1748391946648,5.7397,176.59,176.52,5.70028282]
[1748391946649,5.6617,176.54,176.52,5.70028282]
[1748391947754,6.49324752,176.69,176.52,111.19808282]
[1748391947962,31.2744,176.68,176.59,0.03743896]
[1748391948156,31.2744,176.68,176.62,0.04217205]
[1748391948357,5.6588,176.63,176.62,0.04217205]
[1748391950445,31.2744,176.68,176.62,0.04217205]
[1748391950651,31.2744,176.68,176.63,5.6587]
[1748391950855,31.2744,176.68,176.62,0.04217205]
[1748391951751,31.2744,176.68,176.63,5.6587]
[1748391951953,5.6578,176.67,176.63,5.6587]
[1748391952153,31.2744,176.68,176.62,5.70117205]
[1748391952547,5.658,176.66,176.62,5.70117205]
[1748391952953,29.34,176.68,176.62,5.70117205]
[1748391953150,5.6584,176.65,176.62,5.70117205]
[1748391953953,5.6586,176.64,176.62,0.04217205]
[1748391954957,29.34,176.68,176.62,0.04217205]
[1748391955456,29.34,176.68,176.62,5.70127205]
[1748391957260,5.6583,176.65,176.62,5.70127205]
[1748391957862,5.6576,176.67,176.64,5.6584]
[1748391958453,5.6573,176.68,176.64,5.6584]
[1748391958658,5.6573,176.68,176.65,5.6581]
[1748391960761,3.9024,176.7,176.64,5.6584]
[1748391961356,5.6575,176.68,176.64,5.6584]
[1748391961553,5.6575,176.68,176.65,5.6581]
[1748391962061,5.6576,176.67,176.62,0.04217205]
[1748391962255,3.9024,176.7,176.62,0.04217205]
[1748391962671,5.6573,176.68,176.62,0.04217205]
[1748391962865,5.6573,176.68,176.65,5.6581]
[1748391963257,3.9024,176.7,176.65,5.6581]
[1748391963558,29.32,176.72,176.66,0.03843479]
[1748391964668,5.6574,176.68,176.66,0.03843479]
[1748391965058,5.6574,176.68,176.66,5.69623479]
[1748391965458,5.6574,176.68,176.66,0.03843479]
[1748391966864,5.6574,176.68,176.66,5.69623479]
[1748391967063,5.6574,176.68,176.66,0.03843479]
[1748391968061,5.6575,176.67,176.66,0.03843479]
[1748391969671,5.6573,176.68,176.66,0.03843479]
[1748391969866,29.32,176.72,176.66,5.69623479]
[1748391970169,5.657,176.69,176.66,5.69623479]
[1748391972269,29.32,176.72,176.67,5.6575]
[1748391973268,5.6571,176.69,176.66,5.69613479]
[1748391973669,29.32,176.72,176.66,5.69613479]
[1748391973868,5.6574,176.68,176.66,0.03843479]
[1748391974073,29.32,176.72,176.66,0.03843479]
[1748391974475,5.6574,176.68,176.66,5.69623479]
[1748391974971,5.6575,176.67,176.66,0.03843479]
[1748391978875,5.6574,176.68,176.66,0.03843479]
[1748391979371,5.6574,176.68,176.66,5.69623479]
[1748391979574,5.6574,176.68,176.66,0.03843479]
[1748391981781,5.657,176.69,176.66,0.03843479]
[1748391981984,29.32,176.72,176.66,0.03843479]
[1748391982376,5.657,176.69,176.66,5.69603479]
[1748391982578,29.32,176.72,176.66,0.03843479]
[1748391983183,29.32,176.72,176.68,5.6571]
[1748391983680,5.6559,176.72,176.66,0.03843479]
[1748391985081,5.6559,176.72,176.69,5.6567]
[1748391986085,5.6559,176.72,176.7,5.6565]
[1748391986885,5.6556,176.73,176.71,5.6562]
[1748391987290,5.6555,176.74,176.71,5.6561]
[1748391988281,5.6556,176.73,176.71,5.6561]
[1748391988487,5.6556,176.73,176.7,5.6943926]
[1748391989686,5.6554,176.74,176.7,0.0379926]
[1748391989893,5.8714,176.78,176.7,0.0379926]
[1748391990390,5.6552,176.75,176.72,5.6558]
[1748391990585,5.8714,176.78,176.7,0.0379926]
[1748391990786,5.8714,176.78,176.71,5.656]
[1748391991488,5.8714,176.78,176.72,5.6557]
[1748391991991,5.6551,176.75,176.72,5.6557]
[1748391992690,5.6551,176.75,176.73,5.6555]
[1748391992887,5.6551,176.75,176.7,0.0379926]
[1748391993080,5.8714,176.78,176.7,0.0379926]
[1748391993590,5.6562,176.71,176.7,0.0379926]
[1748391993796,6.49324752,176.74,176.65,29.22]
[1748391994687,0.0379926,176.71,176.68,0.03748712]
[1748391995987,5.6569,176.69,176.68,0.03748712]
[1748392002699,0.0379926,176.71,176.68,0.03748712]
[1748392003000,5.6566,176.7,176.68,0.03748712]
[1748392003398,0.0379926,176.71,176.68,0.03748712]
[1748392004202,5.6569,176.69,176.68,0.03748712]
[1748392005807,5.6578,176.66,176.65,29.22]
[1748392006202,3.8094,176.7,176.62,5.659]
[1748392006408,5.6585,176.64,176.61,29.22]
[1748392006706,3.8094,176.7,176.61,29.22]
[1748392006905,0.04267509,176.67,176.64,0.04236915]
[1748392007107,5.6583,176.65,176.64,0.04236915]
[1748392012115,5.658,176.66,176.64,0.04236915]
[1748392013109,5.6581,176.65,176.64,0.04236915]
[1748392020507,5.658,176.66,176.64,0.04236915]
[1748392021010,0.04267509,176.67,176.64,0.04236915]
[1748392021510,0.04267509,176.67,176.65,5.6581]
[1748392022415,0.04267509,176.67,176.64,0.04236915]
[1748392022909,0.04267509,176.67,176.65,5.6579]
[1748392023808,0.04267509,176.67,176.66,5.6578]
[1748392024209,6.0171,176.75,176.65,29.22]
[1748392024409,6.0171,176.75,176.66,6.49324752]
[1748392024617,3.9998,176.75,176.66,6.49324752]
[1748392024810,5.6559,176.73,176.7,5.6563]
[1748392025010,29.22,176.76,176.69,29.22]
[1748392025211,0.03992577,176.71,176.69,29.22]
[1748392026014,0.03992577,176.71,176.7,5.6565]
[1748392027416,2.0173,176.79,176.69,35.71324752]
[1748392027812,5.655,176.75,176.69,35.71324752]
[1748392028016,2.0173,176.79,176.69,35.71324752]
[1748392028213,11.2997,176.91,176.78,6.49324752]
[1748392028413,17.0,177.08,176.78,6.49324752]
[1748392028414,6.49324752,176.94,176.83,0.04249491]
[1748392028713,5.6508,176.88,176.87,3.714e-05]
[1748392029013,5.6508,176.88,176.78,6.49324752]
[1748392029014,6.49324752,176.91,176.81,29.22]
[1748392029213,5.651,176.88,176.83,5.6522]
[1748392029707,29.22,176.92,176.84,0.0429291]
[1748392029911,5.68672064,176.87,176.84,0.0429291]
[1748392030618,5.6516,176.86,176.84,0.0429291]
[1748392030915,0.03542064,176.87,176.84,0.0429291]
[1748392031518,0.03542064,176.87,176.84,6.53617662]
[1748392031716,29.18,176.93,176.84,8.57837662]
[1748392032014,3.8412,176.95,176.84,8.57837662]
[1748392032219,3.8412,176.95,176.84,8.53544752]
[1748392032416,3.8412,176.95,176.84,5.6519]
[1748392032611,1.8907,176.94,176.88,0.03859806]
[1748392032816,29.18,176.93,176.88,0.03859806]
[1748392033220,5.6505,176.89,176.88,0.03859806]
[1748392036619,5.6501,176.91,176.88,0.03859806]
[1748392037122,5.6502,176.9,176.88,0.03859806]
[1748392037619,29.18,176.93,176.88,0.03859806]
[1748392037925,5.65,176.91,176.88,0.03859806]
[1748392039415,5.6496,176.92,176.88,0.03859806]
[1748392039724,5.6496,176.92,176.88,5.68909806]
[1748392040523,34.8293,176.93,176.89,5.6504]
[1748392041118,29.18,176.93,176.88,0.03859806]
[1748392042219,5.6505,176.89,176.88,0.03859806]
[1748392042815,35.67324752,176.93,176.88,0.03859806]
[1748392042816,29.18,176.93,176.88,0.03859806]
[1748392043022,1.8712,176.94,176.88,0.03859806]
[1748392043417,5.6504,176.9,176.88,0.03859806]
[1748392043621,1.8712,176.94,176.88,0.03859806]
[1748392044021,5.6499,176.91,176.88,5.68919806]
[1748392044422,5.6496,176.92,176.89,5.6504]
[1748392044726,3.8412,176.95,176.88,0.03859806]
[1748392045128,5.6494,176.93,176.88,0.03859806]
[1748392046437,5.6494,176.93,176.89,5.6503]
[1748392048635,5.6495,176.92,176.89,5.6503]
[1748392050739,3.8412,176.95,176.88,0.03859806]
[1748392051039,5.6501,176.91,176.88,0.03859806]
[1748392051728,5.6501,176.91,176.88,5.68929806]
[1748392054639,3.8412,176.95,176.88,0.03859806]
[1748392055141,1.9335,176.94,176.88,0.03859806]
[1748392055331,5.6505,176.89,176.88,0.03859806]
[1748392055528,29.16,176.93,176.88,0.03859806]
[1748392055932,5.6505,176.89,176.88,0.03859806]
[1748392058844,5.6502,176.9,176.88,0.03859806]
[1748392059140,29.16,176.93,176.88,0.03859806]
[1748392059438,29.16,176.93,176.79,29.16]
[1748392059439,6.49324752,176.91,176.79,29.16]
[1748392059749,6.49324752,176.87,176.79,29.16]
[1748392059936,5.6533,176.8,176.79,29.16]
[1748392062040,5.69159805,176.81,176.78,0.03987551]
[1748392062240,0.03859805,176.81,176.78,0.03987551]
[1748392063139,5.69159805,176.81,176.79,5.6536]
[1748392063337,0.03859805,176.81,176.79,5.6536]
[1748392063736,0.03859805,176.81,176.78,5.69367551]
[1748392065050,5.69159805,176.81,176.78,5.69367551]
[1748392066648,0.03859805,176.81,176.79,29.12]
[1748392066847,6.49324752,176.9,176.79,29.12]
[1748392067047,35.61324752,176.9,176.79,29.12]
[1748392067252,5.6516,176.86,176.79,29.12]
[1748392067455,29.12,176.9,176.79,29.12]
[1748392067645,29.12,176.9,176.83,5.6522]
[1748392067646,5.6514,176.87,176.83,5.6522]
[1748392067844,5.6514,176.87,176.83,0.03807257]
[1748392068045,29.12,176.9,176.83,0.03807257]
[1748392068349,5.6508,176.88,176.85,5.6515]
[1748392068551,5.6508,176.88,176.85,5.68926864]
[1748392069653,5.6506,176.89,176.86,5.6513]
[1748392069855,33.0428,176.93,176.85,0.03776864]
[1748392070055,5.6508,176.89,176.85,5.68926864]
[1748392070456,33.0428,176.93,176.85,0.03776864]
[1748392071351,5.6511,176.87,176.85,0.03776864]
[1748392071551,29.12,176.92,176.85,0.03776864]
[1748392072055,29.12,176.92,176.86,5.6513]
[1748392072653,29.12,176.92,176.85,0.03776864]
[1748392073049,5.6504,176.9,176.85,0.03776864]
[1748392073247,29.12,176.92,176.87,5.651]
[1748392073648,5.6503,176.9,176.87,5.651]
[1748392074159,29.12,176.92,176.87,5.651]
[1748392074361,5.6505,176.89,176.86,5.6513]
[1748392074756,29.12,176.92,176.86,5.6513]
[1748392075755,29.12,176.92,176.85,0.03776864]
[1748392075756,29.12,176.92,176.85,5.68936864]
[1748392076061,29.12,176.92,176.85,0.03776864]
[1748392076257,5.6507,176.89,176.86,5.6513]
[1748392076960,5.6509,176.88,176.85,5.68946864]
[1748392078654,5.6512,176.87,176.85,0.03776864]
[1748392078855,29.12,176.92,176.85,0.03776864]
[1748392079563,5.6511,176.87,176.85,0.03776864]
[1748392080257,5.6514,176.86,176.85,0.03776864]
[1748392082458,29.12,176.92,176.85,0.03776864]
[1748392083061,5.6507,176.89,176.86,5.6512]
[1748392083659,5.6502,176.9,176.87,5.651]
[1748392084166,29.12,176.92,176.85,0.03776864]
[1748392084367,5.6507,176.89,176.86,5.6512]
[1748392084760,5.6507,176.89,176.87,5.651]
[1748392084964,5.6503,176.9,176.87,5.651]
[1748392085561,5.6505,176.89,176.87,5.651]
[1748392086363,29.12,176.92,176.85,0.03776864]
[1748392086364,1.928,176.94,176.85,0.03776864]
[1748392086562,29.12,176.99,176.87,29.12]